[Event "*** SCC Grand Prix: Titled Tuesday Blitz"]
[Site "Chess.com"]
[Date "2020.06.09"]
[Round "3"]
[White "Hikaru"]
[Black "vpsetter"]
[Result "1-0"]
[WhiteElo "3234"]
[BlackElo "2635"]
[TimeControl "180+1"]
[EndTime "9:27:55 PDT"]
[Termination "Hikaru won by resignation"]

1. Nf3 {[%clk 0:03:00.9]} 1... Nf6 {[%clk 0:02:59.6]} 2. b3 {[%clk 0:02:58.2]}
2... d5 {[%clk 0:02:55.2]} 3. Bb2 {[%clk 0:02:57]} 3... c5 {[%clk 0:02:54]} 4.
e3 {[%clk 0:02:56.5]} 4... e6 {[%clk 0:02:53.4]} 5. d4 {[%clk 0:02:56.3]} 5...
b6 {[%clk 0:02:38.5]} 6. Bb5+ {[%clk 0:02:53.7]} 6... Nbd7 {[%clk 0:02:34.5]} 7.
c4 {[%clk 0:02:47]} 7... Bb7 {[%clk 0:02:30.3]} 8. cxd5 {[%clk 0:02:46.2]} 8...
Bxd5 {[%clk 0:02:15.6]} 9. Qe2 {[%clk 0:02:40.4]} 9... Be7 {[%clk 0:02:00.5]}
10. Nc3 {[%clk 0:02:38.4]} 10... Bxf3 {[%clk 0:01:57.7]} 11. Qxf3 {[%clk
0:02:37.9]} 11... cxd4 {[%clk 0:01:55.3]} 12. exd4 {[%clk 0:02:36.2]} 12... O-O
{[%clk 0:01:54]} 13. O-O {[%clk 0:02:36.5]} 13... a6 {[%clk 0:01:50.1]} 14. Bd3
{[%clk 0:02:32.4]} 14... Bb4 {[%clk 0:01:44]} 15. Qe2 {[%clk 0:02:22.6]} 15...
Bxc3 {[%clk 0:01:40.2]} 16. Bxc3 {[%clk 0:02:22.2]} 16... Nd5 {[%clk 0:01:40.4]}
17. Bd2 {[%clk 0:02:22]} 17... b5 {[%clk 0:01:35.1]} 18. a4 {[%clk 0:02:21.3]}
18... bxa4 {[%clk 0:01:33.2]} 19. Rxa4 {[%clk 0:02:13.4]} 19... Qb6 {[%clk
0:01:22.7]} 20. Bc4 {[%clk 0:02:12]} 20... N7f6 {[%clk 0:01:11.1]} 21. Qd3
{[%clk 0:02:07.9]} 21... Rfd8 {[%clk 0:00:28.6]} 22. Rfa1 {[%clk 0:02:06.9]}
22... Nc7 {[%clk 0:00:14.9]} 23. Qe2 {[%clk 0:01:42.8]} 23... Rab8 {[%clk
0:00:12.7]} 24. Ba5 {[%clk 0:01:28.4]} 24... Qd6 {[%clk 0:00:12.3]} 25. Qe5
{[%clk 0:01:26.3]} 25... Nfe8 {[%clk 0:00:08.8]} 26. Bc3 {[%clk 0:01:20.7]}
26... Nb5 {[%clk 0:00:03.3]} 27. Ba5 {[%clk 0:01:15.9]} 27... Rd7 {[%clk
0:00:01.9]} 28. h4 {[%clk 0:01:11.2]} 28... f5 {[%clk 0:00:01.1]} 1-0

[Event "*** SCC Grand Prix: Titled Tuesday Blitz"]
[Site "Chess.com"]
[Date "2020.06.09"]
[Round "3"]
[White "GOGIEFF"]
[Black "Roman_Ovetchkin"]
[Result "1-0"]
[WhiteElo "2900"]
[BlackElo "2597"]
[TimeControl "180+1"]
[EndTime "9:27:59 PDT"]
[Termination "GOGIEFF won by resignation"]

1. d4 {[%clk 0:03:00.9]} 1... Nf6 {[%clk 0:02:59.6]} 2. c4 {[%clk 0:02:59.9]}
2... g6 {[%clk 0:02:59.6]} 3. Nc3 {[%clk 0:03:00.2]} 3... Bg7 {[%clk 0:02:59.8]}
4. e4 {[%clk 0:02:59.6]} 4... d6 {[%clk 0:02:59.2]} 5. f3 {[%clk 0:02:59.4]}
5... O-O {[%clk 0:02:59.1]} 6. Nge2 {[%clk 0:03:00]} 6... e5 {[%clk 0:02:55.2]}
7. d5 {[%clk 0:02:59]} 7... c6 {[%clk 0:02:54.1]} 8. Be3 {[%clk 0:02:55.5]} 8...
cxd5 {[%clk 0:02:53]} 9. cxd5 {[%clk 0:02:54.1]} 9... a6 {[%clk 0:02:53.2]} 10.
Qd2 {[%clk 0:02:43]} 10... b5 {[%clk 0:02:52.3]} 11. g4 {[%clk 0:02:31]} 11...
Nbd7 {[%clk 0:02:23]} 12. Ng3 {[%clk 0:02:28.9]} 12... Nb6 {[%clk 0:02:18.8]}
13. b3 {[%clk 0:02:27.4]} 13... Bb7 {[%clk 0:01:23.2]} 14. g5 {[%clk 0:02:13.7]}
14... b4 {[%clk 0:01:10.9]} 15. gxf6 {[%clk 0:02:12.8]} 15... bxc3 {[%clk
0:01:11]} 16. Qf2 {[%clk 0:02:13.4]} 16... Qxf6 {[%clk 0:01:03.9]} 17. Bxb6
{[%clk 0:02:11.7]} 17... Rac8 {[%clk 0:01:03.7]} 18. Bc4 {[%clk 0:02:07.4]}
18... Bh6 {[%clk 0:00:59.8]} 19. Be3 {[%clk 0:02:03.7]} 19... Bf4 {[%clk
0:00:59.6]} 20. Ne2 {[%clk 0:01:57.7]} 20... Bxe3 {[%clk 0:00:51.9]} 21. Qxe3
{[%clk 0:01:56.6]} 21... c2 {[%clk 0:00:51.7]} 22. Rc1 {[%clk 0:01:51.6]} 22...
Qh4+ {[%clk 0:00:46.2]} 23. Qf2 {[%clk 0:01:50.1]} 23... Qh6 {[%clk 0:00:45.4]}
24. Rxc2 {[%clk 0:01:44.9]} 24... f5 {[%clk 0:00:45]} 25. Ng3 {[%clk 0:01:34.6]}
25... Rc5 {[%clk 0:00:28.9]} 26. O-O {[%clk 0:01:29.8]} 26... a5 {[%clk
0:00:20.7]} 27. exf5 {[%clk 0:01:21]} 27... gxf5 {[%clk 0:00:20]} 28. f4 {[%clk
0:01:21.7]} 28... e4 {[%clk 0:00:17.9]} 29. Qd4 {[%clk 0:01:17.3]} 29... Rf7
{[%clk 0:00:14.9]} 30. Rg2 {[%clk 0:01:15.8]} 30... Kf8 {[%clk 0:00:06.1]} 31.
Re1 {[%clk 0:00:57.4]} 1-0

[Event "*** SCC Grand Prix: Titled Tuesday Blitz"]
[Site "Chess.com"]
[Date "2020.06.09"]
[Round "3"]
[White "BursaBBSatranc"]
[Black "AniJak"]
[Result "1-0"]
[WhiteElo "2511"]
[BlackElo "2269"]
[TimeControl "180+1"]
[EndTime "9:28:00 PDT"]
[Termination "BursaBBSatranc won by resignation"]

1. d4 {[%clk 0:03:00.9]} 1... d5 {[%clk 0:02:59.4]} 2. Bf4 {[%clk 0:03:01.2]}
2... Nf6 {[%clk 0:02:58.5]} 3. e3 {[%clk 0:03:01.7]} 3... Bg4 {[%clk 0:02:55.3]}
4. Nf3 {[%clk 0:02:58.8]} 4... e6 {[%clk 0:02:54.1]} 5. Nbd2 {[%clk 0:02:58.9]}
5... Bd6 {[%clk 0:02:52.4]} 6. c3 {[%clk 0:02:54.1]} 6... Bxf4 {[%clk
0:02:48.8]} 7. exf4 {[%clk 0:02:55]} 7... Ne4 {[%clk 0:02:47.1]} 8. Qb3 {[%clk
0:02:48.8]} 8... Nxd2 {[%clk 0:02:30.6]} 9. Nxd2 {[%clk 0:02:46.5]} 9... Qc8
{[%clk 0:02:30.1]} 10. Bd3 {[%clk 0:02:38.8]} 10... O-O {[%clk 0:02:27.9]} 11.
O-O {[%clk 0:02:37.9]} 11... c5 {[%clk 0:02:27.3]} 12. dxc5 {[%clk 0:02:33.5]}
12... Nd7 {[%clk 0:02:26.7]} 13. Qc2 {[%clk 0:02:28.4]} 13... f5 {[%clk
0:02:10]} 14. b4 {[%clk 0:02:25.9]} 14... b6 {[%clk 0:02:08.5]} 15. cxb6 {[%clk
0:02:22.8]} 15... axb6 {[%clk 0:02:06.2]} 16. Rfe1 {[%clk 0:02:18.5]} 16... Qc6
{[%clk 0:02:02.3]} 17. Nb3 {[%clk 0:02:11.1]} 17... Rf6 {[%clk 0:02:00.4]} 18.
Nd4 {[%clk 0:02:10.3]} 18... Qd6 {[%clk 0:02:00.1]} 19. h3 {[%clk 0:01:46.6]}
19... Bh5 {[%clk 0:01:59.1]} 20. a4 {[%clk 0:01:42.6]} 20... Re8 {[%clk
0:01:49.4]} 21. g3 {[%clk 0:01:31.4]} 21... Rg6 {[%clk 0:01:47.7]} 22. Kh2
{[%clk 0:01:29.8]} 22... Nf6 {[%clk 0:01:44.5]} 23. a5 {[%clk 0:01:18.3]} 23...
bxa5 {[%clk 0:01:43.2]} 24. bxa5 {[%clk 0:01:19.2]} 24... Rh6 {[%clk 0:01:43.1]}
25. a6 {[%clk 0:01:13.7]} 25... Bg4 {[%clk 0:01:42.1]} 26. Bf1 {[%clk
0:01:05.8]} 26... Ne4 {[%clk 0:01:33]} 27. a7 {[%clk 0:01:02.5]} 27... Ra8
{[%clk 0:01:32.8]} 28. f3 {[%clk 0:00:55.3]} 28... Nxg3 {[%clk 0:01:21.9]} 29.
Kxg3 {[%clk 0:00:54.5]} 29... g5 {[%clk 0:01:21.2]} 30. Qd2 {[%clk 0:00:48.8]}
30... Rg6 {[%clk 0:01:15.4]} 31. fxg4 {[%clk 0:00:45.3]} 31... fxg4 {[%clk
0:01:13.8]} 32. hxg4 {[%clk 0:00:32.3]} 32... gxf4+ {[%clk 0:01:03]} 33. Qxf4
{[%clk 0:00:29.5]} 33... Qb6 {[%clk 0:00:43.4]} 34. Reb1 {[%clk 0:00:26.8]} 1-0

[Event "*** SCC Grand Prix: Titled Tuesday Blitz"]
[Site "Chess.com"]
[Date "2020.06.09"]
[Round "3"]
[White "rpragchess"]
[Black "vaishali2001"]
[Result "1-0"]
[WhiteElo "2841"]
[BlackElo "2641"]
[TimeControl "180+1"]
[EndTime "9:28:03 PDT"]
[Termination "rpragchess won on time"]

1. e4 {[%clk 0:02:58.6]} 1... e5 {[%clk 0:02:56]} 2. Nf3 {[%clk 0:02:58.3]} 2...
Nc6 {[%clk 0:02:56.2]} 3. Bc4 {[%clk 0:02:58.4]} 3... Nf6 {[%clk 0:02:55]} 4. d3
{[%clk 0:02:58.5]} 4... Bc5 {[%clk 0:02:54.2]} 5. c3 {[%clk 0:02:57.8]} 5... a6
{[%clk 0:02:53.5]} 6. Bb3 {[%clk 0:02:55.5]} 6... Ba7 {[%clk 0:02:46.5]} 7. O-O
{[%clk 0:02:50.3]} 7... h6 {[%clk 0:02:46.6]} 8. Nbd2 {[%clk 0:02:50.1]} 8... d6
{[%clk 0:02:45.8]} 9. Re1 {[%clk 0:02:49.7]} 9... g5 {[%clk 0:02:21.8]} 10. Nf1
{[%clk 0:02:10.3]} 10... g4 {[%clk 0:01:45.4]} 11. N3d2 {[%clk 0:02:09.4]} 11...
h5 {[%clk 0:01:43.7]} 12. Nc4 {[%clk 0:02:08.4]} 12... h4 {[%clk 0:01:42.6]} 13.
Be3 {[%clk 0:02:08.1]} 13... h3 {[%clk 0:01:38.4]} 14. g3 {[%clk 0:02:05.4]}
14... Bd7 {[%clk 0:01:20.4]} 15. Bxa7 {[%clk 0:01:58.2]} 15... Nxa7 {[%clk
0:01:21.3]} 16. d4 {[%clk 0:01:55.5]} 16... Qe7 {[%clk 0:01:20.3]} 17. Nfe3
{[%clk 0:01:54.8]} 17... O-O-O {[%clk 0:01:15.9]} 18. dxe5 {[%clk 0:01:15.6]}
18... dxe5 {[%clk 0:01:16.8]} 19. Qe2 {[%clk 0:01:15.6]} 19... Rhg8 {[%clk
0:00:56.1]} 20. Rad1 {[%clk 0:01:12.7]} 20... Qc5 {[%clk 0:00:30.5]} 21. Nd5
{[%clk 0:01:00.3]} 21... Rg6 {[%clk 0:00:12.2]} 22. Nxe5 {[%clk 0:00:57]} 22...
Rg5 {[%clk 0:00:05.9]} 23. Nxf7 {[%clk 0:00:49.8]} 23... Nxd5 {[%clk 0:00:01.4]}
24. Bxd5 {[%clk 0:00:43.2]} 1-0

[Event "*** SCC Grand Prix: Titled Tuesday Blitz"]
[Site "Chess.com"]
[Date "2020.06.09"]
[Round "3"]
[White "SaqoChess_Twitch"]
[Black "praveenb2002"]
[Result "0-1"]
[WhiteElo "2427"]
[BlackElo "2758"]
[TimeControl "180+1"]
[EndTime "9:28:04 PDT"]
[Termination "praveenb2002 won by resignation"]

1. d4 {[%clk 0:03:00.9]} 1... Nf6 {[%clk 0:02:56.2]} 2. c4 {[%clk 0:03:00.6]}
2... e6 {[%clk 0:02:55.5]} 3. Nc3 {[%clk 0:03:00.7]} 3... Bb4 {[%clk 0:02:55.1]}
4. a3 {[%clk 0:03:01.3]} 4... Bxc3+ {[%clk 0:02:54]} 5. bxc3 {[%clk 0:03:02.2]}
5... c5 {[%clk 0:02:44.6]} 6. e3 {[%clk 0:03:02.4]} 6... Nc6 {[%clk 0:02:44.2]}
7. Bd3 {[%clk 0:03:02.2]} 7... O-O {[%clk 0:02:44.5]} 8. Ne2 {[%clk 0:03:02.2]}
8... d6 {[%clk 0:02:44.2]} 9. O-O {[%clk 0:03:01.9]} 9... e5 {[%clk 0:02:42.8]}
10. d5 {[%clk 0:03:01.9]} 10... Ne7 {[%clk 0:02:28.6]} 11. Ng3 {[%clk
0:03:01.2]} 11... Ng6 {[%clk 0:02:22.4]} 12. f4 {[%clk 0:03:00.8]} 12... exf4
{[%clk 0:02:15.8]} 13. exf4 {[%clk 0:03:01.7]} 13... Qa5 {[%clk 0:02:16.2]} 14.
Qc2 {[%clk 0:02:42.3]} 14... Bd7 {[%clk 0:02:13.8]} 15. f5 {[%clk 0:02:41.9]}
15... Ne5 {[%clk 0:02:07.8]} 16. Bg5 {[%clk 0:02:41.7]} 16... Ba4 {[%clk
0:02:07.2]} 17. Qd2 {[%clk 0:02:41.3]} 17... Ned7 {[%clk 0:01:55.4]} 18. Ne4
{[%clk 0:02:16.6]} 18... Nxe4 {[%clk 0:01:52]} 19. Bxe4 {[%clk 0:02:17.3]} 19...
Rae8 {[%clk 0:01:48.6]} 20. Bd3 {[%clk 0:01:42.1]} 20... f6 {[%clk 0:01:47.6]}
21. Bf4 {[%clk 0:01:40.5]} 21... Ne5 {[%clk 0:01:47.7]} 22. Be2 {[%clk
0:01:32.8]} 22... Bb3 {[%clk 0:01:23.4]} 23. Rfb1 {[%clk 0:01:14.6]} 23... Qa4
{[%clk 0:01:11.5]} 24. Bxe5 {[%clk 0:01:05.4]} 24... Rxe5 {[%clk 0:01:12.3]} 25.
Qd3 {[%clk 0:00:51.3]} 25... Rfe8 {[%clk 0:01:06.6]} 26. Rb2 {[%clk 0:00:46.6]}
26... Re3 {[%clk 0:01:06.3]} 27. Qd2 {[%clk 0:00:43.3]} 27... Rxe2 {[%clk
0:01:05.9]} 28. Qxe2 {[%clk 0:00:42.3]} 28... Rxe2 {[%clk 0:01:06.8]} 29. Rxe2
{[%clk 0:00:42.7]} 29... Bxc4 {[%clk 0:01:05.4]} 30. Re4 {[%clk 0:00:40.3]}
30... h6 {[%clk 0:00:47.2]} 31. Rae1 {[%clk 0:00:33.5]} 31... Qb3 {[%clk
0:00:44]} 32. Re8+ {[%clk 0:00:26]} 32... Kh7 {[%clk 0:00:44.3]} 33. Rd8 {[%clk
0:00:26.9]} 33... Qxc3 {[%clk 0:00:40]} 34. Ree8 {[%clk 0:00:26.8]} 34... Qd4+
{[%clk 0:00:40.5]} 35. Kh1 {[%clk 0:00:25.3]} 35... Qd1+ {[%clk 0:00:40.9]} 0-1

[Event "*** SCC Grand Prix: Titled Tuesday Blitz"]
[Site "Chess.com"]
[Date "2020.06.09"]
[Round "3"]
[White "PattyCastillo"]
[Black "vitnik2020"]
[Result "0-1"]
[WhiteElo "1893"]
[BlackElo "2300"]
[TimeControl "180+1"]
[EndTime "9:28:05 PDT"]
[Termination "vitnik2020 won by resignation"]

1. d4 {[%clk 0:03:00.9]} 1... Nf6 {[%clk 0:02:59]} 2. Nf3 {[%clk 0:02:58.9]}
2... c5 {[%clk 0:02:57]} 3. e3 {[%clk 0:02:52.2]} 3... d5 {[%clk 0:02:50.8]} 4.
Bd3 {[%clk 0:02:37.1]} 4... c4 {[%clk 0:02:47.6]} 5. Be2 {[%clk 0:02:36.2]} 5...
b5 {[%clk 0:02:46.8]} 6. b3 {[%clk 0:02:36.2]} 6... Bb7 {[%clk 0:02:44]} 7. a4
{[%clk 0:02:32.7]} 7... a6 {[%clk 0:02:43.3]} 8. O-O {[%clk 0:02:30.4]} 8... e6
{[%clk 0:02:41.4]} 9. axb5 {[%clk 0:02:25.2]} 9... axb5 {[%clk 0:02:39.9]} 10.
Rxa8 {[%clk 0:02:24.7]} 10... Bxa8 {[%clk 0:02:39.4]} 11. bxc4 {[%clk
0:02:24.4]} 11... dxc4 {[%clk 0:02:30]} 12. Nc3 {[%clk 0:02:14.9]} 12... b4
{[%clk 0:02:10.7]} 13. Nb5 {[%clk 0:02:12.2]} 13... Bd5 {[%clk 0:01:58.7]} 14.
Ne5 {[%clk 0:02:10]} 14... Qc8 {[%clk 0:01:13.8]} 15. Bd2 {[%clk 0:01:29.1]}
15... c3 {[%clk 0:01:12]} 16. Bc1 {[%clk 0:01:24.9]} 16... Nbd7 {[%clk
0:01:10.7]} 17. f4 {[%clk 0:01:18.9]} 17... Be7 {[%clk 0:01:08.4]} 18. f5 {[%clk
0:00:58.9]} 18... O-O {[%clk 0:01:06.5]} 19. fxe6 {[%clk 0:00:58.4]} 19... fxe6
{[%clk 0:01:06.2]} 20. Bd3 {[%clk 0:00:51.6]} 20... Qb7 {[%clk 0:00:58]} 21. Qe2
{[%clk 0:00:46.7]} 21... Nxe5 {[%clk 0:00:56.7]} 22. dxe5 {[%clk 0:00:46.2]}
22... Ne4 {[%clk 0:00:53.1]} 23. Rxf8+ {[%clk 0:00:38.2]} 23... Bxf8 {[%clk
0:00:52.2]} 24. Nd4 {[%clk 0:00:28]} 24... Nc5 {[%clk 0:00:49.2]} 25. Qg4 {[%clk
0:00:10.6]} 25... Nxd3 {[%clk 0:00:47.8]} 26. cxd3 {[%clk 0:00:10.7]} 26... b3
{[%clk 0:00:44.9]} 27. e4 {[%clk 0:00:09.8]} 27... b2 {[%clk 0:00:43.6]} 28.
Bxb2 {[%clk 0:00:08.5]} 28... cxb2 {[%clk 0:00:42.6]} 29. exd5 {[%clk
0:00:08.8]} 29... b1=Q+ {[%clk 0:00:41.5]} 0-1

[Event "*** SCC Grand Prix: Titled Tuesday Blitz"]
[Site "Chess.com"]
[Date "2020.06.09"]
[Round "3"]
[White "MarcoRiehle"]
[Black "ditkin25"]
[Result "1-0"]
[WhiteElo "2640"]
[BlackElo "2426"]
[TimeControl "180+1"]
[EndTime "9:28:06 PDT"]
[Termination "MarcoRiehle won by resignation"]

1. e4 {[%clk 0:03:00.9]} 1... c6 {[%clk 0:02:58.4]} 2. c4 {[%clk 0:03:00.2]}
2... d5 {[%clk 0:02:58.2]} 3. cxd5 {[%clk 0:03:01.1]} 3... cxd5 {[%clk
0:02:59.1]} 4. exd5 {[%clk 0:03:02]} 4... Nf6 {[%clk 0:02:59.4]} 5. Nc3 {[%clk
0:03:02.5]} 5... Nxd5 {[%clk 0:02:59.7]} 6. Nf3 {[%clk 0:03:02.5]} 6... Nc6
{[%clk 0:02:59.2]} 7. Bb5 {[%clk 0:03:02.2]} 7... e6 {[%clk 0:02:56.8]} 8. O-O
{[%clk 0:03:02.1]} 8... Be7 {[%clk 0:02:57.1]} 9. d4 {[%clk 0:03:02.6]} 9... O-O
{[%clk 0:02:57.1]} 10. Re1 {[%clk 0:03:03.1]} 10... Bf6 {[%clk 0:02:55.4]} 11.
Ne4 {[%clk 0:03:02.5]} 11... Be7 {[%clk 0:02:55.4]} 12. a3 {[%clk 0:03:00.6]}
12... Nf6 {[%clk 0:02:38.5]} 13. Nc3 {[%clk 0:02:57.6]} 13... a6 {[%clk
0:02:14.5]} 14. Bd3 {[%clk 0:02:55.6]} 14... b5 {[%clk 0:02:09.5]} 15. Bg5
{[%clk 0:02:41.2]} 15... Bb7 {[%clk 0:02:09.1]} 16. Rc1 {[%clk 0:02:40]} 16...
Rc8 {[%clk 0:02:06.8]} 17. Bb1 {[%clk 0:02:39.1]} 17... Na5 {[%clk 0:01:55.4]}
18. Ne5 {[%clk 0:02:31.9]} 18... Nc4 {[%clk 0:01:51.8]} 19. Nxc4 {[%clk
0:01:42.7]} 19... Rxc4 {[%clk 0:01:52.7]} 20. Be3 {[%clk 0:01:40.3]} 20... b4
{[%clk 0:01:17.9]} 21. axb4 {[%clk 0:01:35.8]} 21... Bxb4 {[%clk 0:01:18.8]} 22.
Qd3 {[%clk 0:01:28.9]} 22... Rc8 {[%clk 0:00:52.9]} 23. Bg5 {[%clk 0:01:25.3]}
23... g6 {[%clk 0:00:51.7]} 24. Bh4 {[%clk 0:01:17.4]} 24... Bxc3 {[%clk
0:00:41.5]} 25. bxc3 {[%clk 0:01:16.9]} 25... Qd5 {[%clk 0:00:41.9]} 26. f3
{[%clk 0:01:14.6]} 26... Nh5 {[%clk 0:00:37.2]} 27. c4 {[%clk 0:01:12.5]} 27...
Qa5 {[%clk 0:00:34.1]} 28. Re5 {[%clk 0:01:05.8]} 28... Nf4 {[%clk 0:00:08.4]}
29. Rxa5 {[%clk 0:01:04.4]} 29... Nxd3 {[%clk 0:00:08.2]} 30. Bxd3 {[%clk
0:01:05.3]} 30... Rc6 {[%clk 0:00:04.5]} 31. Rb1 {[%clk 0:01:02.5]} 31... Bc8
{[%clk 0:00:03.7]} 32. Bf6 {[%clk 0:01:02.8]} 1-0

[Event "*** SCC Grand Prix: Titled Tuesday Blitz"]
[Site "Chess.com"]
[Date "2020.06.09"]
[Round "3"]
[White "mbojan"]
[Black "Indianlad"]
[Result "0-1"]
[WhiteElo "2629"]
[BlackElo "2985"]
[TimeControl "180+1"]
[EndTime "9:28:08 PDT"]
[Termination "Indianlad won by checkmate"]

1. e4 {[%clk 0:03:00.9]} 1... c5 {[%clk 0:02:59.8]} 2. Nf3 {[%clk 0:03:00.6]}
2... d6 {[%clk 0:03:00.5]} 3. d4 {[%clk 0:03:01]} 3... cxd4 {[%clk 0:03:01.3]}
4. Nxd4 {[%clk 0:03:01.9]} 4... Nf6 {[%clk 0:03:01.9]} 5. Nc3 {[%clk 0:03:02.6]}
5... a6 {[%clk 0:03:02.5]} 6. Bg5 {[%clk 0:03:03.3]} 6... e6 {[%clk 0:03:00.5]}
7. f4 {[%clk 0:03:03.6]} 7... Qa5 {[%clk 0:03:01.2]} 8. Bxf6 {[%clk 0:02:49.6]}
8... gxf6 {[%clk 0:03:01]} 9. f5 {[%clk 0:02:50.1]} 9... Nc6 {[%clk 0:02:59.4]}
10. fxe6 {[%clk 0:02:24.3]} 10... fxe6 {[%clk 0:02:57.4]} 11. Be2 {[%clk
0:02:23.2]} 11... Nxd4 {[%clk 0:02:55.8]} 12. Qxd4 {[%clk 0:02:22.5]} 12... Qe5
{[%clk 0:02:52]} 13. Qxe5 {[%clk 0:02:14.8]} 13... dxe5 {[%clk 0:02:50.1]} 14.
O-O {[%clk 0:02:11.5]} 14... Bc5+ {[%clk 0:02:46.6]} 15. Kh1 {[%clk 0:02:11.7]}
15... Ke7 {[%clk 0:02:47.2]} 16. Na4 {[%clk 0:02:07.4]} 16... Bd4 {[%clk
0:02:45.6]} 17. c3 {[%clk 0:02:07.4]} 17... Ba7 {[%clk 0:02:45.6]} 18. b4 {[%clk
0:02:06.4]} 18... Bd7 {[%clk 0:02:44.6]} 19. Nb2 {[%clk 0:02:02.3]} 19... Rac8
{[%clk 0:02:42.1]} 20. Rac1 {[%clk 0:02:00.5]} 20... f5 {[%clk 0:02:33.1]} 21.
Nd3 {[%clk 0:01:51]} 21... Be3 {[%clk 0:02:23.2]} 22. Rcd1 {[%clk 0:01:37.2]}
22... Ba4 {[%clk 0:02:22.1]} 23. exf5 {[%clk 0:01:15.6]} 23... exf5 {[%clk
0:02:01.5]} 24. Rxf5 {[%clk 0:01:09.9]} 24... Bxd1 {[%clk 0:02:00.2]} 25. Rxe5+
{[%clk 0:01:07.8]} 25... Kf6 {[%clk 0:02:00.4]} 26. Bxd1 {[%clk 0:00:45.8]}
26... Rhe8 {[%clk 0:01:59.3]} 27. Rxe8 {[%clk 0:00:29.2]} 27... Rxe8 {[%clk
0:02:00.2]} 28. g3 {[%clk 0:00:30.1]} 28... Bd2 {[%clk 0:01:55.3]} 29. c4 {[%clk
0:00:30.1]} 29... Bxb4 {[%clk 0:01:54.7]} 30. Kg2 {[%clk 0:00:20.6]} 30... Rd8
{[%clk 0:01:42.3]} 31. Nf2 {[%clk 0:00:17.3]} 31... Bc5 {[%clk 0:01:39.6]} 32.
Ne4+ {[%clk 0:00:15]} 32... Ke5 {[%clk 0:01:40.1]} 33. Nxc5 {[%clk 0:00:14.7]}
33... Rxd1 {[%clk 0:01:40.7]} 34. Nxb7 {[%clk 0:00:15.3]} 34... Rd2+ {[%clk
0:01:41]} 35. Kf3 {[%clk 0:00:15.6]} 35... Rxa2 {[%clk 0:01:40.8]} 36. Nc5
{[%clk 0:00:14.6]} 36... a5 {[%clk 0:01:39.7]} 37. h4 {[%clk 0:00:13.9]} 37...
a4 {[%clk 0:01:39.7]} 38. Nd3+ {[%clk 0:00:12.1]} 38... Kd4 {[%clk 0:01:39.9]}
39. Nb4 {[%clk 0:00:12.7]} 39... Rb2 {[%clk 0:01:39.9]} 40. Nc6+ {[%clk
0:00:11.4]} 40... Kxc4 {[%clk 0:01:38.3]} 41. Ne5+ {[%clk 0:00:11.8]} 41... Kc3
{[%clk 0:01:38.4]} 42. Ke3 {[%clk 0:00:11.3]} 42... a3 {[%clk 0:01:38.7]} 43.
Nd3 {[%clk 0:00:12.2]} 43... a2 {[%clk 0:01:39]} 44. Nxb2 {[%clk 0:00:13.1]}
44... Kxb2 {[%clk 0:01:39.5]} 45. Kf4 {[%clk 0:00:14]} 45... a1=Q {[%clk
0:01:40]} 46. Kg5 {[%clk 0:00:14.9]} 46... Qg1 {[%clk 0:01:39.6]} 47. Kh5 {[%clk
0:00:15.8]} 47... Qxg3 {[%clk 0:01:39.3]} 48. Kh6 {[%clk 0:00:16.7]} 48... Qxh4+
{[%clk 0:01:39.4]} 49. Kg7 {[%clk 0:00:16.8]} 49... Kc3 {[%clk 0:01:38.7]} 50.
Kh8 {[%clk 0:00:17.7]} 50... Kd4 {[%clk 0:01:39.3]} 51. Kg7 {[%clk 0:00:18.3]}
51... Ke5 {[%clk 0:01:39.8]} 52. Kh8 {[%clk 0:00:19.2]} 52... Kf6 {[%clk
0:01:39.8]} 53. Kg8 {[%clk 0:00:20.1]} 53... Qg5+ {[%clk 0:01:40.4]} 54. Kh8
{[%clk 0:00:20.5]} 54... Qg7# {[%clk 0:01:40.7]} 0-1